bitfinex/quotes_BTCUSD_20240818
["timestamp","ask_amount","ask_price","bid_price","bid_amount"]
[1723950734545,0.000828,59872.0,59871.0,0.29450721]
[1723950735005,0.000828,59872.0,59871.0,0.68650721]
[1723950735209,0.000828,59872.0,59871.0,0.90072221]
[1723950735839,0.000828,59872.0,59871.0,0.88672221]
[1723950736395,0.000828,59872.0,59871.0,0.90072221]
[1723950736594,0.000828,59872.0,59871.0,0.88672221]
[1723950736794,0.000828,59872.0,59871.0,0.87272221]
[1723950737005,0.000828,59872.0,59871.0,1.05926904]
[1723950737433,0.000828,59872.0,59871.0,1.04426904]
[1723950737793,0.000828,59872.0,59871.0,1.05826904]
[1723950738005,0.000828,59872.0,59871.0,1.07526904]
[1723950738206,0.000828,59872.0,59871.0,1.06226904]
[1723950738406,0.000828,59872.0,59871.0,1.04926904]
[1723950738609,0.000828,59872.0,59871.0,1.06326904]
[1723950739260,0.000828,59872.0,59871.0,1.04926904]
[1723950739462,0.000828,59872.0,59871.0,1.06326904]
[1723950739660,0.000828,59872.0,59871.0,1.07726904]
[1723950739867,0.000828,59872.0,59871.0,1.07177812]
[1723950740019,0.000828,59872.0,59871.0,1.06677812]
[1723950740222,0.000828,59872.0,59871.0,0.9007145]
[1723950740433,0.000828,59872.0,59871.0,0.87996907]
[1723950741029,0.000828,59872.0,59871.0,0.9007145]
[1723950741234,0.000828,59872.0,59871.0,0.86596907]
[1723950741488,0.000828,59872.0,59871.0,0.90071385]
[1723950742258,0.000828,59872.0,59871.0,1.07526839]
[1723950742800,0.0002,59879.0,59871.0,1.07526839]
[1723950742801,0.0002,59879.0,59878.0,0.250507]
[1723950743083,0.0002,59879.0,59878.0,0.86345478]
[1723950743325,0.0002,59879.0,59878.0,1.14829662]
[1723950743557,0.0002,59879.0,59878.0,1.35909587]
[1723950743800,0.1982,59898.0,59878.0,1.35909587]
[1723950743801,0.1982,59898.0,59882.0,0.001]
[1723950744087,0.1982,59898.0,59897.0,0.150256]
[1723950744572,0.1982,59898.0,59897.0,0.00906452]
[1723950745071,0.1982,59898.0,59893.0,0.050089]
[1723950745317,0.1982,59898.0,59897.0,0.02302795]
[1723950745553,0.1982,59898.0,59897.0,0.014]
[1723950746031,0.1982,59898.0,59893.0,0.050088]
[1723950746268,0.1982,59898.0,59897.0,0.00902762]
[1723950746534,0.1982,59898.0,59897.0,0.014]
[1723950746774,0.1982,59898.0,59897.0,0.00902762]
[1723950747276,0.1982,59898.0,59897.0,0.014]
[1723950747547,0.1982,59898.0,59897.0,0.00902762]
[1723950747548,1.07625454,59898.0,59897.0,0.00902762]
[1723950747815,1.07625454,59898.0,59897.0,0.02302762]
[1723950748049,1.07625454,59898.0,59897.0,0.014]
[1723950748589,1.07625454,59898.0,59897.0,0.028]
[1723950748857,1.07625454,59898.0,59897.0,0.014]
[1723950749350,1.07625454,59898.0,59897.0,0.007]
[1723950749833,1.07625454,59898.0,59897.0,0.017]
[1723950750072,1.07625454,59898.0,59897.0,0.007]
[1723950750308,1.07625454,59898.0,59897.0,0.017]
[1723950752538,0.78635454,59898.0,59897.0,0.017]
[1723950753791,0.78717954,59898.0,59897.0,0.017]
[1723950754828,0.93743454,59898.0,59897.0,0.017]
[1723950755789,0.83726454,59898.0,59897.0,0.017]
[1723950757379,0.93743454,59898.0,59897.0,0.017]
[1723950757628,0.83726454,59898.0,59897.0,0.017]
[1723950759865,0.78717954,59898.0,59897.0,0.017]
[1723950760276,0.83726454,59898.0,59897.0,0.017]
[1723950760981,1.03760454,59898.0,59897.0,0.017]
[1723950761190,0.96043454,59898.0,59897.0,0.017]
[1723950761394,0.83726454,59898.0,59897.0,0.017]
[1723950762322,0.78717954,59898.0,59897.0,0.017]
[1723950767765,0.83726454,59898.0,59897.0,0.017]
[1723950768908,0.78697857,59898.0,59897.0,0.017]
[1723950769856,0.78516112,59898.0,59897.0,0.017]
[1723950780190,0.17237954,59898.0,59897.0,0.017]
[1723950781326,0.57107954,59898.0,59897.0,0.017]
[1723950782867,0.17237954,59898.0,59897.0,0.017]
[1723950783269,0.17237954,59898.0,59897.0,0.02704337]
[1723950784076,0.17237954,59898.0,59897.0,0.017]
[1723950787433,0.58677954,59898.0,59897.0,0.017]
[1723950790221,0.76987954,59898.0,59897.0,0.017]
[1723950790421,0.76987954,59898.0,59897.0,0.0179086]
[1723950790821,0.79287954,59898.0,59897.0,0.0179086]
[1723950791416,0.84296454,59898.0,59897.0,0.0179086]
[1723950791863,0.749374,59890.0,59889.0,0.0009086]
[1723950792060,1.68739454,59890.0,59889.0,0.0009086]
[1723950792233,1.7175369,59890.0,59889.0,0.0009086]
[1723950792541,0.5981,59871.0,59862.0,0.12399161]
[1723950792742,0.5981,59871.0,59861.0,0.63576669]
[1723950792743,0.415,59866.0,59861.0,0.51177509]
[1723950792960,0.17155454,59865.0,59862.0,0.00807726]
[1723950793172,0.17155454,59865.0,59855.0,0.04959664]
[1723950793333,0.17155454,59865.0,59856.0,0.00807967]
[1723950793804,0.17155454,59865.0,59862.0,0.007]
[1723950794364,0.17155454,59865.0,59853.0,0.04959664]
[1723950794547,0.17155454,59865.0,59854.0,0.0288523]
[1723950794764,0.17155454,59865.0,59856.0,0.014]
[1723950794954,0.17155454,59865.0,59857.0,0.00807927]
[1723950795198,0.17155454,59865.0,59852.0,0.1828075]
[1723950795352,0.17155454,59865.0,59853.0,0.00808087]
[1723950795555,0.17155454,59865.0,59855.0,0.050121]
[1723950795812,0.17155454,59865.0,59852.0,0.20357912]
[1723950795813,0.17255454,59865.0,59856.0,0.01807967]
[1723950796328,0.17255454,59865.0,59862.0,0.014]
[1723950796329,0.17155454,59865.0,59862.0,0.014]
[1723950796538,0.17255454,59865.0,59862.0,0.014]
[1723950796757,0.17355454,59865.0,59855.0,0.01]
[1723950796988,0.17455454,59865.0,59856.0,0.013]
[1723950797169,0.17355454,59865.0,59856.0,0.02107967]
[1723950797370,0.17155454,59865.0,59856.0,0.00807967]
[1723950797577,0.17355454,59865.0,59862.0,0.023]
[1723950797930,0.17355454,59865.0,59862.0,0.01]
[1723950798358,0.17455454,59865.0,59862.0,0.01]
[1723950798607,0.17455454,59865.0,59863.0,0.00807686]
[1723950798811,0.002,59865.0,59864.0,0.232013]
[1723950799285,0.002,59865.0,59864.0,0.24019775]
[1723950799949,0.1831,59876.0,59865.0,0.100225]
[1723950800074,0.17155454,59875.0,59866.0,0.100222]
[1723950800278,0.17155454,59875.0,59868.0,0.050109]
[1723950800498,0.17155454,59875.0,59866.0,0.00818304]
[1723950800706,0.17155454,59875.0,59865.0,0.4011]
[1723950800707,0.17155454,59875.0,59869.0,0.00816185]
[1723950800904,0.17155454,59875.0,59865.0,0.4011]
[1723950800905,0.17155454,59875.0,59870.0,0.00816145]
[1723950801121,0.17155454,59875.0,59867.0,0.050111]
[1723950801480,0.17255454,59875.0,59868.0,0.01916225]
[1723950802098,0.415,59874.0,59868.0,0.00816225]
[1723950802378,0.35465454,59873.0,59865.0,0.007]
[1723950802602,0.35465454,59873.0,59866.0,0.00821257]
[1723950802603,0.415,59872.0,59866.0,0.00821257]
[1723950802757,0.5981,59868.0,59852.0,0.0009075]
[1723950802969,0.17155454,59867.0,59852.0,0.0009075]
[1723950803204,0.22166554,59867.0,59853.0,0.00821779]
[1723950803558,0.22166554,59867.0,59856.0,0.0009086]
[1723950803750,0.17155454,59867.0,59866.0,0.011]
[1723950803977,0.19455454,59867.0,59866.0,0.011]
[1723950804656,0.24466554,59867.0,59866.0,0.011]
[1723950804899,0.19455454,59867.0,59866.0,0.011]
[1723950805432,0.19455454,59867.0,59866.0,0.017]
[1723950805645,0.24466554,59867.0,59866.0,0.006]
[1723950806123,0.63406554,59867.0,59866.0,0.006]
[1723950806323,0.73428754,59867.0,59866.0,0.006]
[1723950806528,0.86553799,59867.0,59866.0,0.006]
[1723950807040,0.73428754,59867.0,59866.0,0.012]
[1723950807237,0.63406554,59867.0,59866.0,0.012]
[1723950809595,0.63406554,59867.0,59866.0,0.006]
[1723950809802,0.63406554,59867.0,59856.0,0.0009086]
[1723950809981,0.462511,59867.0,59866.0,0.013]
[1723950810649,0.462511,59867.0,59866.0,0.007]
[1723950813256,0.4124,59867.0,59866.0,0.007]
[1723950813453,0.4124,59867.0,59866.0,0.013]
[1723950813718,0.58395454,59867.0,59866.0,0.013]
[1723950819733,0.56095454,59867.0,59866.0,0.013]
[1723950819941,0.17155454,59867.0,59866.0,0.013]
[1723950821276,0.17155454,59867.0,59866.0,0.02132901]
[1723950822998,0.17155454,59867.0,59866.0,0.01532901]
[1723950823763,0.17155454,59867.0,59866.0,0.02332901]
[1723950825258,0.55025454,59867.0,59866.0,0.02332901]
[1723950825659,0.55025454,59867.0,59866.0,0.015]
[1723950825816,0.87179099,59867.0,59866.0,0.015]
[1723950826219,0.81676554,59867.0,59866.0,0.015]
[1723950827688,0.91698754,59867.0,59866.0,0.015]
[1723950827888,0.81676554,59867.0,59866.0,0.015]
[1723950828383,0.91998754,59867.0,59866.0,0.015]
[1723950828594,1.23123824,59867.0,59866.0,0.015]
[1723950828803,1.42252758,59867.0,59866.0,0.015]
[1723950829423,1.42252758,59867.0,59866.0,0.0079086]
[1723950829607,1.25739206,59867.0,59866.0,0.0009086]
[1723950829794,1.26039206,59867.0,59866.0,0.0019086]
[1723950829977,1.25839206,59867.0,59866.0,0.0019086]
[1723950830181,1.41622127,59867.0,59866.0,0.0009086]
[1723950830387,1.41522127,59867.0,59866.0,0.0009086]
[1723950830812,1.25639206,59867.0,59866.0,0.0019086]
[1723950831012,1.26039206,59867.0,59866.0,0.0029086]
[1723950831214,1.26508806,59867.0,59866.0,0.0019086]
[1723950832364,1.31836487,59867.0,59866.0,0.0009086]
[1723950832539,1.32236487,59867.0,59866.0,0.0009086]
[1723950832741,1.32536487,59867.0,59866.0,0.0019086]
[1723950832950,1.32136487,59867.0,59866.0,0.0019086]
[1723950833104,1.32136487,59867.0,59866.0,0.0009086]
[1723950833105,1.15886606,59867.0,59866.0,0.0009086]
[1723950833342,1.16286606,59867.0,59866.0,0.0019086]
[1723950833552,1.16186606,59867.0,59866.0,0.0019086]
[1723950833767,1.06164406,59867.0,59866.0,0.0019086]
[1723950833995,1.02098754,59867.0,59866.0,0.0009086]
[1723950834197,1.02098754,59867.0,59866.0,0.0019086]
[1723950834410,1.02398754,59867.0,59866.0,0.0019086]
[1723950834617,1.01998754,59867.0,59866.0,0.0019086]
[1723950836205,1.02298754,59867.0,59866.0,0.0029086]
[1723950836378,1.01998754,59867.0,59866.0,0.0019086]
[1723950836578,1.17840786,59867.0,59866.0,0.0019086]
[1723950836778,1.18140786,59867.0,59866.0,0.0019086]
[1723950837203,1.28462986,59867.0,59866.0,0.0019086]
[1723950837533,1.28662986,59867.0,59866.0,0.0019086]
[1723950837681,1.28262986,59867.0,59866.0,0.0019086]
[1723950838772,1.28162986,59867.0,59866.0,0.0019086]
[1723950838976,1.14936349,59867.0,59866.0,0.0019086]
[1723950840435,1.04914149,59867.0,59866.0,0.0019086]
[1723950840637,0.92276554,59867.0,59866.0,0.0019086]
[1723950840811,1.02298754,59867.0,59866.0,0.0019086]
[1723950841224,1.02278657,59867.0,59866.0,0.0019086]
[1723950841836,0.49375357,59867.0,59866.0,0.0019086]
[1723950841988,0.49334259,59867.0,59866.0,0.0019086]
[1723950842199,0.54345359,59867.0,59866.0,0.0019086]
[1723950842413,0.64367559,59867.0,59866.0,0.0019086]
[1723950842613,1.02407559,59867.0,59866.0,0.0009086]
[1723950842825,1.05022968,59867.0,59866.0,0.0009086]
[1723950843030,1.02307559,59867.0,59866.0,0.0009086]
[1723950843231,1.02607559,59867.0,59866.0,0.0009086]
[1723950843474,1.02407559,59867.0,59866.0,0.0009086]
[1723950843794,1.05022986,59867.0,59866.0,0.0009086]
[1723950844000,1.05322986,59867.0,59866.0,0.0009086]
[1723950844276,1.04822986,59867.0,59866.0,0.0009086]
[1723950844492,1.05122986,59867.0,59866.0,0.0009086]
[1723950844679,1.05322986,59867.0,59866.0,0.0009086]
[1723950844812,1.05522986,59867.0,59866.0,0.0019086]
[1723950845025,1.12929759,59867.0,59866.0,0.0019086]
[1723950845380,1.12929759,59867.0,59866.0,0.0009086]
[1723950845381,1.329666,59867.0,59866.0,0.0009086]
[1723950845799,1.331666,59867.0,59866.0,0.0009086]
[1723950846337,1.327666,59867.0,59866.0,0.0009086]
[1723950846560,1.25367439,59867.0,59866.0,0.0009086]
[1723950846915,1.25507249,59867.0,59866.0,0.0009086]
[1723950847139,1.25707249,59867.0,59866.0,0.0009086]
[1723950847746,1.33208426,59867.0,59866.0,0.0009086]
[1723950847863,1.33220971,59867.0,59866.0,0.0009086]
[1723950848063,1.25707249,59867.0,59866.0,0.0009086]
[1723950848525,1.25307249,59867.0,59866.0,0.0009086]
[1723950848710,1.25707249,59867.0,59866.0,0.0009086]
[1723950849349,1.25307249,59867.0,59866.0,0.0009086]
[1723950850931,1.15285049,59867.0,59866.0,0.0009086]
[1723950851326,1.42862703,59867.0,59866.0,0.0009086]
[1723950851540,1.50376425,59867.0,59866.0,0.0009086]
[1723950851728,1.25707249,59867.0,59866.0,0.0009086]
[1723950852172,1.30715788,59867.0,59866.0,0.0009086]
[1723950852585,1.25707249,59867.0,59866.0,0.0009086]
[1723950852916,1.30715577,59867.0,59866.0,0.0009086]
[1723950853449,1.25707249,59867.0,59866.0,0.0009086]
[1723950853787,1.15285049,59867.0,59866.0,0.0009086]
[1723950853961,1.15485049,59867.0,59866.0,0.0009086]
[1723950854197,1.15185049,59867.0,59866.0,0.0009086]
[1723950854602,1.05162849,59867.0,59866.0,0.0009086]
[1723950855073,1.05162849,59867.0,59866.0,0.00967378]
[1723950855238,1.05162849,59867.0,59866.0,0.0009086]
[1723950855437,1.05162849,59867.0,59866.0,0.00967378]
[1723950855585,1.05162849,59867.0,59866.0,0.0009086]
[1723950855790,1.15485049,59867.0,59866.0,0.0009086]
[1723950858208,1.15185049,59867.0,59866.0,0.0009086]
[1723950859351,1.05162849,59867.0,59866.0,0.0009086]
[1723950859882,1.15185049,59867.0,59866.0,0.0009086]
[1723950860084,1.05162849,59867.0,59866.0,0.0009086]
[1723950860603,1.15185049,59867.0,59866.0,0.0009086]
[1723950860800,1.15285049,59867.0,59866.0,0.0009086]
[1723950861933,1.15185049,59867.0,59866.0,0.0009086]
[1723950862109,1.25483606,59867.0,59866.0,0.0009086]
[1723950862519,1.15185049,59867.0,59866.0,0.0009086]
[1723950864279,0.76845049,59867.0,59866.0,0.0009086]
[1723950864913,0.66822849,59867.0,59866.0,0.0009086]
[1723950865065,0.35160649,59867.0,59866.0,0.0009086]
[1723950865268,0.17534069,59867.0,59866.0,0.0009086]
[1723950865431,0.17534069,59867.0,59866.0,0.40766821]
[1723950866034,0.17334069,59867.0,59866.0,0.40766821]
[1723950866233,0.17116669,59867.0,59866.0,0.40766821]
[1723950866431,0.17416669,59867.0,59866.0,0.40766821]
[1723950867078,0.17416669,59867.0,59866.0,0.41266821]
[1723950867409,0.17116669,59867.0,59866.0,0.40766821]
[1723950867757,0.17116669,59867.0,59866.0,0.41466821]
[1723950867957,0.17316669,59867.0,59866.0,0.40766821]
[1723950868608,0.17116669,59867.0,59866.0,0.40766821]
[1723950868864,0.17116669,59867.0,59866.0,0.41366821]
[1723950869083,0.17116669,59867.0,59866.0,0.59456821]
[1723950869255,0.17116669,59867.0,59866.0,0.61532902]
[1723950869499,0.17116669,59867.0,59866.0,0.62132902]
[1723950869700,0.17116669,59867.0,59866.0,0.61532902]
[1723950869960,0.17116669,59867.0,59866.0,0.60932902]
[1723950870214,0.17116669,59867.0,59866.0,0.61632902]
[1723950870427,0.17116669,59867.0,59866.0,0.60932902]
[1723950870625,0.000826,59867.0,59866.0,0.67244002]
[1723950871001,0.000826,59867.0,59866.0,0.62232902]
[1723950871204,0.000826,59867.0,59866.0,0.60756821]
[1723950871410,0.000826,59867.0,59866.0,0.62832614]
[1723950871638,0.000826,59867.0,59866.0,0.60756821]
[1723950871825,0.000826,59867.0,59866.0,0.60156821]
[1723950871957,0.000826,59867.0,59866.0,0.61256821]
[1723950875614,0.000826,59867.0,59866.0,0.66267921]
[1723950876424,0.000826,59867.0,59866.0,0.61256821]
[1723950878918,0.17238054,59867.0,59866.0,0.61256821]
[1723950879122,0.17238054,59867.0,59866.0,0.03366821]
[1723950880590,0.17238054,59867.0,59866.0,0.63016821]
[1723950882855,0.17238054,59867.0,59866.0,0.44926821]
[1723950883463,0.17238054,59867.0,59866.0,0.03366821]
[1723950895090,0.55528054,59867.0,59866.0,0.03366821]
[1723950895294,0.55528054,59867.0,59866.0,0.0249086]
[1723950896800,0.17238054,59867.0,59866.0,0.0249086]
[1723950899528,1.38636359,59867.0,59866.0,0.0249086]
[1723950899719,1.61673923,59867.0,59866.0,0.0249086]
[1723950899925,1.54201118,59867.0,59866.0,0.0249086]
[1723950900128,1.54001118,59867.0,59866.0,0.0249086]
[1723950900448,1.14798918,59867.0,59866.0,0.0249086]
[1723950900686,1.54675602,59867.0,59866.0,0.0249086]
[1723950900884,1.54675602,59867.0,59856.0,0.0009086]
[1723950900885,0.625019,59857.0,59856.0,0.0009086]
[1723950901034,0.92296518,59857.0,59856.0,0.0009086]
[1723950901236,1.02596518,59857.0,59856.0,0.0009086]
[1723950901413,1.04596518,59857.0,59856.0,0.0009086]
[1723950902193,1.43800318,59857.0,59856.0,0.0009086]
[1723950902346,1.52415617,59857.0,59856.0,0.0009086]
[1723950902544,1.43900318,59857.0,59856.0,0.0009086]
[1723950902770,1.44100318,59857.0,59856.0,0.0009086]
[1723950902955,1.54324118,59857.0,59856.0,0.0009086]
[1723950903149,1.44300318,59857.0,59856.0,0.0009086]
[1723950903353,1.54324118,59857.0,59856.0,0.0009086]
[1723950903671,1.43900318,59857.0,59856.0,0.0009086]
[1723950903872,1.54124118,59857.0,59856.0,0.0009086]
[1723950904008,1.54224118,59857.0,59856.0,0.0009086]
[1723950904207,1.54724118,59857.0,59856.0,0.0009086]
[1723950904817,1.55129193,59857.0,59856.0,0.0009086]
[1723950905199,1.52513829,59857.0,59856.0,0.0009086]
[1723950905405,1.42090029,59857.0,59856.0,0.0009086]
[1723950905679,0.75045454,59857.0,59856.0,0.0009086]
[1723950905844,1.00104954,59857.0,59856.0,0.0009086]
[1723950906015,1.13013449,59857.0,59856.0,0.0009086]
[1723950906424,1.00104954,59857.0,59856.0,0.0009086]
[1723950906842,1.00304954,59857.0,59856.0,0.0009086]
[1723950906997,1.12404954,59857.0,59856.0,0.0009086]
[1723950907602,1.10104954,59857.0,59856.0,0.0009086]
[1723950908457,1.20628754,59857.0,59856.0,0.0009086]
[1723950908659,1.20228754,59857.0,59856.0,0.0009086]
[1723950908861,1.51708754,59857.0,59856.0,0.0009086]
[1723950909282,1.51908754,59857.0,59856.0,0.0009086]
[1723950910148,1.51908754,59857.0,59856.0,0.0109086]
[1723950910914,1.51908754,59857.0,59830.0,0.4149]
[1723950910915,0.001,59839.0,59824.0,0.42406847]
[1723950911120,0.050142,59830.0,59824.0,0.42406847]
[1723950911325,0.79389654,59830.0,59824.0,0.00916847]
[1723950911528,0.91718054,59830.0,59824.0,0.00916847]
[1723950912344,0.76675454,59830.0,59824.0,0.00916847]
[1723950912552,0.24469654,59830.0,59829.0,0.011075]
[1723950912960,0.17155454,59830.0,59829.0,0.009075]
[1723950913161,0.22169654,59830.0,59829.0,0.009075]
[1723950913363,0.17155454,59830.0,59829.0,0.011075]
[1723950913771,0.22169654,59830.0,59829.0,0.009075]
[1723950914152,0.32198054,59830.0,59829.0,0.010075]
[1723950914388,0.89418054,59830.0,59829.0,0.010075]
[1723950914616,0.81689654,59830.0,59829.0,0.010075]
[1723950914823,0.19455454,59830.0,59829.0,0.010075]
[1723950914953,0.24469654,59830.0,59829.0,0.010075]
[1723950915378,0.24469654,59830.0,59829.0,0.009075]
[1723950915969,0.24469654,59830.0,59829.0,0.011075]
[1723950916346,0.24469654,59830.0,59829.0,0.009075]
[1723950916347,0.22169654,59830.0,59829.0,0.009075]
[1723950916610,1.28426454,59830.0,59829.0,0.009075]
[1723950916793,1.30926454,59830.0,59829.0,0.009075]
[1723950917173,1.31426454,59830.0,59829.0,0.009075]
[1723950917577,1.31026454,59830.0,59829.0,0.009075]
[1723950917776,1.30726454,59830.0,59829.0,0.009075]
[1723950917993,1.31026454,59830.0,59829.0,0.009075]
[1723950918760,1.44216737,59830.0,59829.0,0.009075]
[1723950918911,1.54216737,59830.0,59829.0,0.009075]
[1723950919315,1.54416737,59830.0,59829.0,0.009075]
[1723950919822,1.54516737,59830.0,59829.0,0.009075]
[1723950920021,1.54716737,59830.0,59829.0,0.009075]
[1723950920262,1.41526454,59830.0,59829.0,0.009075]
[1723950920465,1.41226454,59830.0,59829.0,0.009075]
[1723950920581,1.51354854,59830.0,59829.0,0.009075]
[1723950920969,1.41226454,59830.0,59829.0,0.009075]
[1723950921742,1.41326454,59830.0,59829.0,0.009075]
[1723950922146,1.12346454,59830.0,59829.0,0.009075]
[1723950922446,1.41326454,59830.0,59829.0,0.009075]
[1723950922854,1.65595137,59830.0,59829.0,0.009075]
[1723950923059,0.050157,59812.0,59811.0,0.4149]
[1723950923208,0.46135454,59812.0,59810.0,0.51268369]
[1723950923413,0.22171154,59811.0,59810.0,0.0009086]
[1723950923614,0.32202654,59811.0,59810.0,0.0009086]
[1723950923996,0.32202654,59811.0,59810.0,0.00824453]
[1723950924402,0.22171154,59811.0,59810.0,0.00824453]
[1723950924639,0.32202654,59811.0,59810.0,0.00824453]
[1723950924840,0.41781154,59811.0,59810.0,0.01824453]
[1723950925072,0.51812654,59811.0,59810.0,0.01824453]
[1723950925273,0.51812654,59811.0,59810.0,0.0109086]
[1723950925508,0.54112654,59811.0,59810.0,0.0109086]
[1723950925638,0.54212654,59811.0,59810.0,0.0199086]
[1723950926047,0.64144154,59811.0,59810.0,0.0099086]
[1723950926372,0.54112654,59811.0,59810.0,0.0099086]
[1723950926570,0.34702654,59811.0,59810.0,0.0199086]
[1723950926782,0.34702654,59811.0,59810.0,0.0099086]
[1723950926948,0.34602654,59811.0,59810.0,0.0009086]
[1723950927152,0.34602654,59811.0,59810.0,0.0049086]
[1723950927496,0.34602654,59811.0,59810.0,0.0079086]
[1723950927899,0.19555454,59811.0,59810.0,0.0079086]
[1723950928105,0.24571154,59811.0,59810.0,0.0079086]
[1723950928507,0.34602654,59811.0,59810.0,0.0079086]
[1723950928717,0.44634154,59811.0,59810.0,0.0079086]
[1723950930929,0.57717569,59811.0,59810.0,0.0079086]
[1723950931286,0.44634154,59811.0,59810.0,0.0079086]
[1723950931824,0.34602654,59811.0,59810.0,0.0079086]
[1723950932792,0.44634154,59811.0,59810.0,0.0079086]
[1723950933008,1.03904154,59811.0,59810.0,0.0079086]
[1723950933218,1.13804154,59811.0,59810.0,0.0079086]
[1723950933464,1.28112569,59811.0,59810.0,0.0079086]
[1723950934138,1.29024897,59811.0,59810.0,0.0079086]
[1723950934337,1.13804154,59811.0,59810.0,0.0079086]
[1723950936476,1.23835654,59811.0,59810.0,0.0079086]
[1723950936681,1.13904154,59811.0,59810.0,0.0079086]
[1723950936955,1.13804154,59811.0,59810.0,0.0079086]
[1723950938384,0.44602654,59811.0,59810.0,0.0079086]
[1723950938592,0.44602654,59811.0,59810.0,0.5798086]
[1723950938593,0.17255454,59811.0,59810.0,0.5798086]
[1723950938909,0.17255454,59811.0,59810.0,0.58772158]
[1723950939518,0.17155454,59811.0,59810.0,0.58372158]
[1723950939731,0.2898,59824.0,59813.0,0.378]
[1723950939947,0.17155454,59823.0,59813.0,0.378]
[1723950940167,0.17155454,59823.0,59812.0,0.1939]
[1723950940168,0.17155454,59823.0,59814.0,0.38539244]
[1723950940803,0.17155454,59823.0,59816.0,0.378]
[1723950941023,0.17155454,59823.0,59815.0,0.02080404]
[1723950941024,0.17155454,59823.0,59821.0,0.050149]
[1723950941225,0.003,59824.0,59823.0,0.1939]
[1723950941454,0.003,59824.0,59823.0,0.64284151]
[1723950941766,0.003,59824.0,59823.0,0.75076556]
[1723950941973,0.003,59824.0,59823.0,0.85106056]
[1723950942104,0.003,59824.0,59823.0,0.85406056]
[1723950942313,0.000826,59834.0,59830.0,0.050141]
[1723950942540,0.000826,59834.0,59832.0,0.378]
[1723950943114,0.000826,59834.0,59833.0,0.00757657]
[1723950943940,0.001826,59834.0,59833.0,0.00757657]
[1723950944167,0.001826,59834.0,59833.0,0.19157657]
[1723950944368,0.000826,59834.0,59833.0,0.19157657]
[1723950944761,0.001826,59834.0,59833.0,0.65811557]
[1723950945164,0.001826,59834.0,59833.0,0.85867357]
[1723950945409,0.001826,59834.0,59833.0,0.95867357]
[1723950945611,0.001826,59834.0,59833.0,0.99145778]
[1723950945821,0.001826,59834.0,59833.0,0.97945778]
[1723950945976,0.000826,59834.0,59833.0,0.96745778]
[1723950946349,0.188,59868.0,59839.0,0.5216]
[1723950946562,0.06696,59871.0,59852.0,0.4044]
[1723950946563,0.17155454,59856.0,59852.0,0.4044]
[1723950946976,0.2898,59877.0,59858.0,0.050118]
[1723950947174,0.17155454,59866.0,59859.0,0.4044]
[1723950947385,0.17155454,59866.0,59859.0,0.41191813]
[1723950947592,0.3792,59865.0,59859.0,0.00751813]
[1723950947798,0.17155454,59864.0,59852.0,0.4044]
[1723950948006,0.17155454,59864.0,59860.0,0.00751786]
[1723950948206,0.17155454,59864.0,59852.0,0.4044]
[1723950948408,0.17155454,59864.0,59861.0,0.00751758]
[1723950948585,0.244114,59863.0,59852.0,0.4044]
[1723950948724,0.17155454,59862.0,59852.0,0.4044]
[1723950948920,0.17155454,59862.0,59853.0,0.00751975]
[1723950949439,0.17155454,59862.0,59859.0,0.001]
[1723950949889,0.17155454,59862.0,59852.0,0.458523]
[1723950950132,0.17155454,59862.0,59852.0,0.4044]
[1723950950299,0.17155454,59862.0,59853.0,0.01351975]
[1723950950712,0.17155454,59862.0,59853.0,0.00951975]
[1723950950881,0.17155454,59862.0,59859.0,0.004]
[1723950951350,0.17238054,59862.0,59859.0,0.004]
[1723950952320,0.17238054,59862.0,59854.0,0.050121]
[1723950952510,0.17238054,59862.0,59852.0,0.4064]
[1723950952511,0.17238054,59862.0,59860.0,0.00742704]
[1723950952716,0.17238054,59862.0,59854.0,0.050121]
[1723950953127,0.17238054,59862.0,59855.0,0.05752075]
[1723950953731,0.17238054,59862.0,59859.0,0.004]
[1723950953948,0.000826,59862.0,59859.0,0.004]
[1723950954148,0.000826,59862.0,59860.0,0.0073994]
[1723950954352,0.000826,59862.0,59856.0,0.05012]
[1723950954556,0.000826,59862.0,59854.0,0.100243]
[1723950954557,0.000826,59862.0,59861.0,0.00739912]
[1723950954900,0.000826,59862.0,59857.0,0.050119]
[1723950955078,0.000826,59862.0,59854.0,0.100243]
[1723950955079,0.000826,59862.0,59861.0,0.00739912]
[1723950955217,0.000826,59862.0,59855.0,0.05012]
[1723950955415,0.000826,59862.0,59861.0,0.00739912]
[1723950955621,0.000826,59862.0,59856.0,0.05012]
[1723950955815,0.000826,59862.0,59861.0,0.00739912]
[1723950956066,0.000826,59862.0,59861.0,0.008]
[1723950956293,0.000826,59862.0,59861.0,0.01539912]
[1723950956666,0.000826,59862.0,59861.0,0.39899912]
[1723950957068,0.000826,59862.0,59861.0,0.40699912]
[1723950958416,0.000826,59862.0,59861.0,0.39899912]
[1723950958723,0.000826,59862.0,59861.0,0.40699912]
[1723950959017,0.000826,59862.0,59861.0,0.41299912]
[1723950959463,0.000826,59862.0,59861.0,0.02139912]
[1723950961511,0.17238054,59862.0,59861.0,0.02139912]
[1723950961649,0.56398054,59862.0,59861.0,0.02139912]
[1723950961850,0.56398054,59862.0,59861.0,0.014]
[1723950962465,0.000826,59862.0,59861.0,0.014]
[1723950962920,0.000826,59862.0,59861.0,0.02138002]
[1723950963503,0.000826,59862.0,59861.0,0.01538002]
[1723950963904,0.000826,59862.0,59861.0,0.02238002]
[1723950964644,0.000826,59862.0,59861.0,0.01438002]
[1723950965081,0.000826,59862.0,59861.0,0.02338002]
[1723950968752,0.000826,59862.0,59861.0,0.00738002]
[1723950969001,0.75908054,59862.0,59861.0,0.00738002]
[1723950969152,0.75908054,59862.0,59861.0,0.016]
[1723950969153,0.80919554,59862.0,59861.0,0.016]
[1723950969356,0.83219554,59862.0,59861.0,0.016]
[1723950969583,0.83219554,59862.0,59861.0,0.009]
[1723950969988,0.83219554,59862.0,59861.0,0.012]
[1723950970391,0.78208054,59862.0,59861.0,0.012]
[1723950970594,0.83219554,59862.0,59861.0,0.012]
[1723950970794,0.78208054,59862.0,59861.0,0.012]
[1723950971145,0.78208054,59862.0,59848.0,0.02076972]
[1723950971362,0.19455454,59861.0,59849.0,0.02076972]
[1723950971565,0.19455454,59861.0,59850.0,0.02076972]
[1723950971986,0.19455454,59861.0,59851.0,0.02076972]
[1723950972228,0.19455454,59861.0,59851.0,0.00738115]
[1723950972473,0.19455454,59861.0,59852.0,0.02076971]
[1723950972673,0.19455454,59861.0,59853.0,0.02076971]